[Event "*** Titled Tuesday 3|2 Blitz"]
[Site "Chess.com"]
[Date "2015.10.06"]
[Round "5"]
[White "lorcho"]
[Black "MinhGTrAn"]
[Result "1-0"]
[WhiteElo "2569"]
[BlackElo "2563"]
[TimeControl "180+2"]
[EndTime "12:01:07 PDT"]
[Termination "lorcho won on time"]

1. e4 {[%clk 0:03:01.9]} 1... c5 {[%clk 0:03:00.4]} 2. Nc3 {[%clk 0:03:02.2]}
2... d6 {[%clk 0:03:00.3]} 3. g3 {[%clk 0:03:03.4]} 3... Nc6 {[%clk 0:02:59.4]}
4. Bg2 {[%clk 0:03:05]} 4... Nf6 {[%clk 0:03:01]} 5. d3 {[%clk 0:03:06.6]} 5...
h5 {[%clk 0:03:01.9]} 6. h3 {[%clk 0:03:06]} 6... Bd7 {[%clk 0:03:00]} 7. f4
{[%clk 0:03:06.5]} 7... Qc7 {[%clk 0:02:51.6]} 8. Nf3 {[%clk 0:03:07]} 8...
O-O-O {[%clk 0:02:50.3]} 9. Be3 {[%clk 0:03:07.6]} 9... g6 {[%clk 0:02:42.1]}
10. a3 {[%clk 0:03:07.4]} 10... Bg7 {[%clk 0:02:41.7]} 11. Qd2 {[%clk 0:03:09]}
11... a6 {[%clk 0:02:27.8]} 12. O-O {[%clk 0:02:48.6]} 12... h4 {[%clk
0:02:13.3]} 13. Nxh4 {[%clk 0:02:49.3]} 13... Nd4 {[%clk 0:02:08.3]} 14. Ne2
{[%clk 0:02:33.1]} 14... Nxe2+ {[%clk 0:02:05.5]} 15. Qxe2 {[%clk 0:02:35]}
15... Nh5 {[%clk 0:02:07.2]} 16. Qf2 {[%clk 0:02:32]} 16... Bxb2 {[%clk
0:02:08.6]} 17. Rab1 {[%clk 0:02:31.9]} 17... Bd4 {[%clk 0:01:46.6]} 18. Bxd4
{[%clk 0:02:30]} 18... cxd4 {[%clk 0:01:48.5]} 19. Nf3 {[%clk 0:02:29.4]} 19...
e5 {[%clk 0:01:49.6]} 20. fxe5 {[%clk 0:02:28.8]} 20... dxe5 {[%clk 0:01:51.5]}
21. Ng5 {[%clk 0:02:28.5]} 21... Rdf8 {[%clk 0:01:48.7]} 22. Nxf7 {[%clk
0:02:23.8]} 22... Be6 {[%clk 0:01:41.3]} 23. Nxh8 {[%clk 0:02:07.8]} 23... Rxf2
{[%clk 0:01:43.2]} 24. Rxf2 {[%clk 0:02:08.7]} 24... Qg7 {[%clk 0:01:29.6]} 25.
Rbf1 {[%clk 0:02:05.3]} 25... Nxg3 {[%clk 0:01:27.1]} 26. Rf8+ {[%clk
0:02:05.7]} 26... Kd7 {[%clk 0:01:04.4]} 27. R1f7+ {[%clk 0:02:07.6]} 27... Bxf7
{[%clk 0:01:04.8]} 28. Rxf7+ {[%clk 0:02:09.5]} 28... Qxf7 {[%clk 0:01:05.6]}
29. Nxf7 {[%clk 0:02:11.4]} 29... Ke6 {[%clk 0:01:03.6]} 30. Kf2 {[%clk
0:01:59]} 30... Nh5 {[%clk 0:01:01.4]} 31. Nd8+ {[%clk 0:01:54.2]} 31... Kd6
{[%clk 0:01:00.4]} 32. Nxb7+ {[%clk 0:01:54.8]} 32... Kc6 {[%clk 0:01:01.4]} 33.
Na5+ {[%clk 0:01:52.3]} 1-0

[Event "*** Titled Tuesday 3|2 Blitz"]
[Site "Chess.com"]
[Date "2015.10.06"]
[Round "5"]
[White "chessloveyou"]
[Black "Jahonas"]
[Result "1-0"]
[WhiteElo "2177"]
[BlackElo "2055"]
[TimeControl "180+2"]
[EndTime "12:01:48 PDT"]
[Termination "chessloveyou won by resignation"]

1. d4 {[%clk 0:03:01.9]} 1... c6 {[%clk 0:03:00.2]} 2. c4 {[%clk 0:03:02.5]}
2... Nf6 {[%clk 0:03:01.4]} 3. Nc3 {[%clk 0:03:03.2]} 3... d5 {[%clk 0:03:02.8]}
4. Nf3 {[%clk 0:03:03.7]} 4... g6 {[%clk 0:03:02.4]} 5. cxd5 {[%clk 0:03:02.5]}
5... cxd5 {[%clk 0:03:03.2]} 6. Bg5 {[%clk 0:03:01.6]} 6... Bg7 {[%clk
0:03:03.9]} 7. h4 {[%clk 0:03:02.5]} 7... h6 {[%clk 0:03:04.4]} 8. Bd2 {[%clk
0:03:02.4]} 8... Nc6 {[%clk 0:03:05.4]} 9. e3 {[%clk 0:03:00.6]} 9... Bf5 {[%clk
0:03:05.4]} 10. Bb5 {[%clk 0:03:01.3]} 10... Qb6 {[%clk 0:03:05.2]} 11. O-O
{[%clk 0:02:56.9]} 11... O-O {[%clk 0:03:03.6]} 12. Qb3 {[%clk 0:02:52.1]} 12...
e6 {[%clk 0:02:45.9]} 13. Na4 {[%clk 0:02:39.6]} 13... Qc7 {[%clk 0:02:15.7]}
14. Rac1 {[%clk 0:02:39.4]} 14... Ne4 {[%clk 0:02:10]} 15. Bb4 {[%clk
0:02:30.6]} 15... Rfc8 {[%clk 0:02:07.3]} 16. Nc5 {[%clk 0:02:18.7]} 16... Nxc5
{[%clk 0:02:06]} 17. Rxc5 {[%clk 0:02:18]} 17... Qd8 {[%clk 0:01:45.9]} 18. Bxc6
{[%clk 0:02:13.9]} 18... Rxc6 {[%clk 0:01:46.1]} 19. Rxc6 {[%clk 0:02:14]} 19...
bxc6 {[%clk 0:01:47.2]} 20. Rc1 {[%clk 0:02:12.8]} 20... Rb8 {[%clk 0:01:43.3]}
21. Qc3 {[%clk 0:02:12.7]} 21... Qb6 {[%clk 0:01:37.9]} 22. Ba3 {[%clk
0:02:05.2]} 22... Bf8 {[%clk 0:01:36.4]} 23. Bxf8 {[%clk 0:02:05.7]} 23... Kxf8
{[%clk 0:01:36.4]} 24. b3 {[%clk 0:02:06.4]} 24... Kg7 {[%clk 0:00:41.5]} 25.
Qxc6 {[%clk 0:01:59.1]} 25... Qxc6 {[%clk 0:00:41.9]} 26. Rxc6 {[%clk 0:01:59]}
26... a5 {[%clk 0:00:24.3]} 27. Ra6 {[%clk 0:01:55.5]} 27... Rb5 {[%clk
0:00:25]} 28. Ne5 {[%clk 0:01:50.5]} 28... Bb1 {[%clk 0:00:25.3]} 29. a4 {[%clk
0:01:49]} 29... Rxb3 {[%clk 0:00:25.5]} 30. Rxa5 {[%clk 0:01:49.8]} 30... Bc2
{[%clk 0:00:23]} 31. Ra7 {[%clk 0:01:50]} 31... Rb1+ {[%clk 0:00:21.5]} 32. Kh2
{[%clk 0:01:50.7]} 32... Ra1 {[%clk 0:00:22.4]} 33. Rxf7+ {[%clk 0:01:50.9]}
33... Kg8 {[%clk 0:00:23]} 34. Ra7 {[%clk 0:01:48.5]} 34... Rxa4 {[%clk
0:00:22.8]} 35. Rxa4 {[%clk 0:01:48.9]} 35... Bxa4 {[%clk 0:00:24.7]} 36. Nxg6
{[%clk 0:01:49.8]} 36... Kf7 {[%clk 0:00:26.1]} 37. Ne5+ {[%clk 0:01:50.3]}
37... Kf6 {[%clk 0:00:27.6]} 38. g4 {[%clk 0:01:51]} 38... Bd1 {[%clk
0:00:28.1]} 39. Kg3 {[%clk 0:01:51.2]} 39... Bc2 {[%clk 0:00:29.3]} 40. f4
{[%clk 0:01:51.9]} 40... Bb1 {[%clk 0:00:29.7]} 41. Kf2 {[%clk 0:01:49.5]} 41...
Bc2 {[%clk 0:00:29.9]} 42. Ke1 {[%clk 0:01:50.4]} 42... Be4 {[%clk 0:00:31.2]}
43. Kd2 {[%clk 0:01:51.2]} 43... Ke7 {[%clk 0:00:32.3]} 44. Kc3 {[%clk 0:01:52]}
44... Kf6 {[%clk 0:00:33.9]} 45. Kb4 {[%clk 0:01:52.8]} 45... Bc2 {[%clk
0:00:34.3]} 46. Kc5 {[%clk 0:01:53.5]} 46... Bd1 {[%clk 0:00:35.7]} 47. g5+
{[%clk 0:01:53]} 47... hxg5 {[%clk 0:00:35.7]} 48. hxg5+ {[%clk 0:01:54.1]}
48... Ke7 {[%clk 0:00:37.5]} 49. g6 {[%clk 0:01:52.9]} 49... Kf6 {[%clk
0:00:36.8]} 50. Kd6 {[%clk 0:01:53.2]} 50... Bc2 {[%clk 0:00:37.9]} 51. g7
{[%clk 0:01:53.9]} 51... Kxg7 {[%clk 0:00:37.8]} 52. Kxe6 {[%clk 0:01:54.7]}
52... Be4 {[%clk 0:00:38.8]} 53. Nd7 {[%clk 0:01:55.5]} 53... Kg6 {[%clk
0:00:38.2]} 54. Nf6 {[%clk 0:01:56.5]} 1-0

[Event "*** Titled Tuesday 3|2 Blitz"]
[Site "Chess.com"]
[Date "2015.10.06"]
[Round "5"]
[White "1stSecond"]
[Black "HustleStandard"]
[Result "1-0"]
[WhiteElo "2396"]
[BlackElo "2339"]
[TimeControl "180+2"]
[EndTime "12:01:50 PDT"]
[Termination "1stSecond won by resignation"]

1. d4 {[%clk 0:03:00.2]} 1... Nf6 {[%clk 0:02:56.8]} 2. c4 {[%clk 0:03:00]} 2...
g6 {[%clk 0:02:58.7]} 3. Nc3 {[%clk 0:03:01.2]} 3... Bg7 {[%clk 0:03:00.3]} 4.
e4 {[%clk 0:03:01]} 4... O-O {[%clk 0:03:02.2]} 5. h3 {[%clk 0:03:02.2]} 5... d6
{[%clk 0:02:35]} 6. Nf3 {[%clk 0:03:02.7]} 6... e5 {[%clk 0:02:31.3]} 7. d5
{[%clk 0:03:02.8]} 7... a5 {[%clk 0:02:31.6]} 8. Be3 {[%clk 0:03:02.8]} 8... Na6
{[%clk 0:02:32.3]} 9. g4 {[%clk 0:03:03.2]} 9... Nc5 {[%clk 0:02:31.1]} 10. Nd2
{[%clk 0:03:04]} 10... c6 {[%clk 0:02:25.7]} 11. Be2 {[%clk 0:02:51.4]} 11... b5
{[%clk 0:01:54.4]} 12. cxb5 {[%clk 0:02:48.3]} 12... cxd5 {[%clk 0:01:55.2]} 13.
exd5 {[%clk 0:02:49.1]} 13... Bb7 {[%clk 0:01:53.7]} 14. Nc4 {[%clk 0:02:48.1]}
14... a4 {[%clk 0:01:44.2]} 15. f3 {[%clk 0:02:36.7]} 15... e4 {[%clk
0:01:34.6]} 16. f4 {[%clk 0:02:29.9]} 16... a3 {[%clk 0:01:26.3]} 17. b4 {[%clk
0:02:27.9]} 17... Nxg4 {[%clk 0:01:23.4]} 18. hxg4 {[%clk 0:02:20.5]} 18...
Bxc3+ {[%clk 0:01:24]} 19. Kf1 {[%clk 0:02:20.9]} 19... Nd3 {[%clk 0:01:22.1]}
20. Rc1 {[%clk 0:02:14.3]} 20... Nxc1 {[%clk 0:01:20.2]} 21. Qxc1 {[%clk
0:02:14.6]} 21... Bg7 {[%clk 0:01:20.3]} 22. Qd2 {[%clk 0:02:10.7]} 22... Rc8
{[%clk 0:01:19]} 23. Na5 {[%clk 0:02:10.7]} 23... Bc3 {[%clk 0:01:02.3]} 24. Qd1
{[%clk 0:01:48.9]} 24... Bxb4 {[%clk 0:01:01.1]} 25. Nxb7 {[%clk 0:01:47.3]}
25... Qe7 {[%clk 0:01:01.5]} 26. Qa4 {[%clk 0:01:45.5]} 26... Bc3 {[%clk
0:00:42.7]} 27. Na5 {[%clk 0:01:45]} 27... Ra8 {[%clk 0:00:41.2]} 28. Nc6 {[%clk
0:01:45.3]} 28... Qf6 {[%clk 0:00:33.5]} 29. Qc4 {[%clk 0:01:43.3]} 29... Rfe8
{[%clk 0:00:32.4]} 30. g5 {[%clk 0:01:42.7]} 30... Qg7 {[%clk 0:00:33.9]} 31. b6
{[%clk 0:01:42.8]} 31... Bb2 {[%clk 0:00:14.8]} 32. b7 {[%clk 0:01:42.5]} 32...
Rab8 {[%clk 0:00:15.7]} 33. Nxb8 {[%clk 0:01:42.7]} 33... Rxb8 {[%clk
0:00:15.1]} 34. Qc8+ {[%clk 0:01:43.5]} 34... Qf8 {[%clk 0:00:14.3]} 35. Qxf8+
{[%clk 0:01:40.2]} 35... Kxf8 {[%clk 0:00:16.2]} 36. Ba6 {[%clk 0:01:41.2]} 1-0

[Event "*** Titled Tuesday 3|2 Blitz"]
[Site "Chess.com"]
[Date "2015.10.06"]
[Round "5"]
[White "alturas_pacificas"]
[Black "Bab3s"]
[Result "1/2-1/2"]
[WhiteElo "2102"]
[BlackElo "2111"]
[TimeControl "180+2"]
[EndTime "12:02:09 PDT"]
[Termination "Game drawn by repetition"]

1. d4 {[%clk 0:02:57.5]} 1... Nf6 {[%clk 0:03:00.9]} 2. Bf4 {[%clk 0:02:57.2]}
2... e6 {[%clk 0:03:01.3]} 3. e3 {[%clk 0:02:58.1]} 3... c5 {[%clk 0:03:01.7]}
4. c3 {[%clk 0:02:58.9]} 4... b6 {[%clk 0:03:02.7]} 5. Nd2 {[%clk 0:02:56.8]}
5... Bb7 {[%clk 0:03:03.6]} 6. Ngf3 {[%clk 0:02:58]} 6... Be7 {[%clk 0:03:04.6]}
7. Bd3 {[%clk 0:02:59.5]} 7... O-O {[%clk 0:03:05.8]} 8. O-O {[%clk 0:03:00.7]}
8... Nh5 {[%clk 0:03:01.2]} 9. Bg3 {[%clk 0:03:00.8]} 9... Nxg3 {[%clk
0:03:01.2]} 10. hxg3 {[%clk 0:03:02.7]} 10... d6 {[%clk 0:03:01.8]} 11. Qe2
{[%clk 0:03:03.9]} 11... Nd7 {[%clk 0:03:00.7]} 12. e4 {[%clk 0:03:05]} 12...
cxd4 {[%clk 0:02:53.3]} 13. cxd4 {[%clk 0:03:05.7]} 13... Rc8 {[%clk 0:02:54.6]}
14. Rac1 {[%clk 0:03:07.1]} 14... Rxc1 {[%clk 0:02:53.6]} 15. Rxc1 {[%clk
0:03:07.6]} 15... Qb8 {[%clk 0:02:55.5]} 16. Bb5 {[%clk 0:03:01.7]} 16... Nf6
{[%clk 0:02:53.2]} 17. e5 {[%clk 0:02:41.5]} 17... dxe5 {[%clk 0:02:48.1]} 18.
dxe5 {[%clk 0:02:41.5]} 18... Nd5 {[%clk 0:02:33.3]} 19. a3 {[%clk 0:02:36.3]}
19... Rc8 {[%clk 0:02:31.5]} 20. Rxc8+ {[%clk 0:02:36.1]} 20... Qxc8 {[%clk
0:02:33.4]} 21. Bc4 {[%clk 0:02:32.8]} 21... a6 {[%clk 0:02:25.4]} 22. Ne4
{[%clk 0:02:31.6]} 22... b5 {[%clk 0:02:22.5]} 23. Bxd5 {[%clk 0:02:30.5]} 23...
Bxd5 {[%clk 0:02:21.5]} 24. Nd6 {[%clk 0:02:31.9]} 24... Qc6 {[%clk 0:02:11.6]}
25. Nd4 {[%clk 0:02:31.1]} 25... Qc1+ {[%clk 0:02:04.3]} 26. Kh2 {[%clk
0:02:32.3]} 26... Qh6+ {[%clk 0:02:00.8]} 27. Kg1 {[%clk 0:02:33.8]} 27... Qc1+
{[%clk 0:02:00.5]} 28. Kh2 {[%clk 0:02:34.7]} 28... Qc5 {[%clk 0:01:48]} 29. Qd2
{[%clk 0:02:19.5]} 29... Bxd6 {[%clk 0:01:41.7]} 30. exd6 {[%clk 0:02:21.4]}
30... Qxd6 {[%clk 0:01:43.2]} 31. Qe3 {[%clk 0:02:19]} 31... g6 {[%clk 0:01:38]}
32. b4 {[%clk 0:02:18.9]} 32... Kg7 {[%clk 0:01:33.3]} 33. Nf3 {[%clk
0:02:18.8]} 33... Bxf3 {[%clk 0:01:15]} 34. gxf3 {[%clk 0:02:20.7]} 34... e5
{[%clk 0:01:09.7]} 35. Kg2 {[%clk 0:01:33.7]} 35... Qd4 {[%clk 0:01:06.8]} 36.
Qc1 {[%clk 0:01:30.1]} 36... e4 {[%clk 0:00:51.3]} 37. fxe4 {[%clk 0:01:26.6]}
37... Qxe4+ {[%clk 0:00:51.4]} 38. Kg1 {[%clk 0:01:27.6]} 38... Qd3 {[%clk
0:00:45.6]} 39. Qa1+ {[%clk 0:01:25.2]} 39... Kg8 {[%clk 0:00:45.5]} 40. Qf6
{[%clk 0:01:24.3]} 40... Qxa3 {[%clk 0:00:21]} 41. Qd8+ {[%clk 0:01:21.4]} 41...
Kg7 {[%clk 0:00:21.8]} 42. Qd4+ {[%clk 0:01:23]} 42... Kg8 {[%clk 0:00:14]} 43.
Qd8+ {[%clk 0:01:23.6]} 43... Kg7 {[%clk 0:00:14.8]} 44. Qd4+ {[%clk 0:01:25.2]}
44... Kg8 {[%clk 0:00:15]} 45. Qd8+ {[%clk 0:01:25.8]} 45... Kg7 {[%clk
0:00:15.7]} 46. Qd4+ {[%clk 0:01:27.3]} 1/2-1/2

[Event "*** Titled Tuesday 3|2 Blitz"]
[Site "Chess.com"]
[Date "2015.10.06"]
[Round "5"]
[White "JustKid"]
[Black "Trendle"]
[Result "1-0"]
[WhiteElo "2139"]
[BlackElo "2326"]
[TimeControl "180+2"]
[EndTime "12:02:26 PDT"]
[Termination "JustKid won by resignation"]

1. d4 {[%clk 0:03:01.9]} 1... f5 {[%clk 0:02:57.8]} 2. Nc3 {[%clk 0:02:58.2]}
2... Nf6 {[%clk 0:02:53]} 3. Bg5 {[%clk 0:02:58.9]} 3... d5 {[%clk 0:02:50.8]}
4. Bxf6 {[%clk 0:02:59.7]} 4... exf6 {[%clk 0:02:51.7]} 5. e3 {[%clk 0:03:01.6]}
5... Be6 {[%clk 0:02:51.8]} 6. Qf3 {[%clk 0:03:01.5]} 6... Nc6 {[%clk
0:02:46.2]} 7. Bd3 {[%clk 0:03:03.1]} 7... Qd7 {[%clk 0:02:45.1]} 8. a3 {[%clk
0:03:00.3]} 8... O-O-O {[%clk 0:02:43.6]} 9. Nge2 {[%clk 0:02:59.8]} 9... Ne7
{[%clk 0:02:42.2]} 10. Bb5 {[%clk 0:02:54.2]} 10... c6 {[%clk 0:02:42.8]} 11.
Bd3 {[%clk 0:02:55.4]} 11... Kb8 {[%clk 0:02:39.2]} 12. Na4 {[%clk 0:02:55.7]}
12... Nc8 {[%clk 0:02:38]} 13. Nf4 {[%clk 0:02:46.2]} 13... Bf7 {[%clk 0:02:36]}
14. Ne2 {[%clk 0:02:43.7]} 14... g6 {[%clk 0:02:33.3]} 15. h4 {[%clk 0:02:42.3]}
15... h5 {[%clk 0:02:33.9]} 16. b4 {[%clk 0:02:32.4]} 16... Nd6 {[%clk
0:02:33.1]} 17. Nc5 {[%clk 0:02:31.2]} 17... Qc7 {[%clk 0:02:30.6]} 18. Nf4
{[%clk 0:02:30.1]} 18... Re8 {[%clk 0:02:25]} 19. O-O {[%clk 0:02:24.8]} 19...
Ne4 {[%clk 0:02:24.8]} 20. Rfc1 {[%clk 0:02:02.9]} 20... Bd6 {[%clk 0:02:18.7]}
21. Ne2 {[%clk 0:01:39.7]} 21... Qc8 {[%clk 0:02:06.8]} 22. b5 {[%clk
0:01:34.3]} 22... Nxc5 {[%clk 0:01:47.5]} 23. dxc5 {[%clk 0:01:33.5]} 23... Bxc5
{[%clk 0:01:49.4]} 24. bxc6 {[%clk 0:01:31.9]} 24... bxc6 {[%clk 0:01:50]} 25.
Rab1+ {[%clk 0:01:29]} 25... Ka8 {[%clk 0:01:48.1]} 26. c4 {[%clk 0:01:22.8]}
26... Bxa3 {[%clk 0:01:43.6]} 27. Rc3 {[%clk 0:01:15.5]} 27... Bd6 {[%clk
0:01:41.4]} 28. Nd4 {[%clk 0:01:01.5]} 28... Be5 {[%clk 0:01:37.4]} 29. c5
{[%clk 0:00:44.8]} 29... Qc7 {[%clk 0:01:31.2]} 30. Ra3 {[%clk 0:00:31.8]} 30...
Rb8 {[%clk 0:01:30.6]} 31. Rba1 {[%clk 0:00:33.3]} 31... Rb7 {[%clk 0:01:31.8]}
32. Ba6 {[%clk 0:00:34.2]} 32... Rb4 {[%clk 0:01:26.6]} 33. Qe2 {[%clk
0:00:28.2]} 33... Rhb8 {[%clk 0:01:23.9]} 34. Bb5 {[%clk 0:00:25.2]} 34... Rb7
{[%clk 0:01:13]} 35. Bxc6 {[%clk 0:00:25.1]} 35... Kb8 {[%clk 0:01:06.6]} 36.
Bxb7 {[%clk 0:00:24.4]} 36... Qxb7 {[%clk 0:01:07]} 37. g3 {[%clk 0:00:18.9]}
37... Rb1+ {[%clk 0:01:02.2]} 38. Kg2 {[%clk 0:00:19.7]} 38... Rb2 {[%clk
0:00:55.5]} 39. Qd3 {[%clk 0:00:18.8]} 39... Be8 {[%clk 0:00:54.6]} 40. c6
{[%clk 0:00:17.5]} 40... Qb6 {[%clk 0:00:53.1]} 41. Rxa7 {[%clk 0:00:16.5]}
41... Qxa7 {[%clk 0:00:53]} 42. Rxa7 {[%clk 0:00:17.6]} 42... Kxa7 {[%clk
0:00:54.9]} 43. Qa3+ {[%clk 0:00:19.1]} 43... Kb6 {[%clk 0:00:54.6]} 44. Qxb2+
{[%clk 0:00:20.7]} 44... Kc5 {[%clk 0:00:56.5]} 45. Qc3+ {[%clk 0:00:20.5]}
45... Kd6 {[%clk 0:00:57.5]} 46. Qb4+ {[%clk 0:00:21.8]} 46... Kc7 {[%clk
0:00:58.4]} 47. Qe7+ {[%clk 0:00:23]} 1-0

[Event "*** Titled Tuesday 3|2 Blitz"]
[Site "Chess.com"]
[Date "2015.10.06"]
[Round "5"]
[White "Goala"]
[Black "Nutflush"]
[Result "1-0"]
[WhiteElo "2156"]
[BlackElo "1937"]
[TimeControl "180+2"]
[EndTime "12:02:32 PDT"]
[Termination "Goala won by checkmate"]

1. d4 {[%clk 0:03:01.9]} 1... Nf6 {[%clk 0:02:57.7]} 2. c4 {[%clk 0:02:47.3]}
2... c5 {[%clk 0:02:56.8]} 3. d5 {[%clk 0:02:47.6]} 3... e5 {[%clk 0:02:58]} 4.
Nc3 {[%clk 0:02:47.5]} 4... d6 {[%clk 0:02:59.3]} 5. g3 {[%clk 0:02:37.3]} 5...
Nbd7 {[%clk 0:02:59.9]} 6. Bg2 {[%clk 0:02:37.6]} 6... g6 {[%clk 0:03:01.2]} 7.
e4 {[%clk 0:02:38.3]} 7... Bg7 {[%clk 0:03:02.6]} 8. Nge2 {[%clk 0:02:40]} 8...
O-O {[%clk 0:03:03.9]} 9. O-O {[%clk 0:02:41.6]} 9... a6 {[%clk 0:02:50.3]} 10.
f4 {[%clk 0:02:40.2]} 10... Nh5 {[%clk 0:02:28.8]} 11. f5 {[%clk 0:02:38.3]}
11... b5 {[%clk 0:02:10.6]} 12. cxb5 {[%clk 0:01:38.6]} 12... axb5 {[%clk
0:02:12.5]} 13. Nxb5 {[%clk 0:01:40.5]} 13... Ndf6 {[%clk 0:02:04.5]} 14. Nec3
{[%clk 0:01:28.9]} 14... Ba6 {[%clk 0:02:01.3]} 15. Bg5 {[%clk 0:01:19.7]} 15...
Qb6 {[%clk 0:01:55]} 16. a4 {[%clk 0:01:17.2]} 16... Bxb5 {[%clk 0:01:44.9]} 17.
Nxb5 {[%clk 0:01:11.2]} 17... h6 {[%clk 0:01:40.1]} 18. Be3 {[%clk 0:01:01.9]}
18... Nd7 {[%clk 0:01:24.1]} 19. Qd2 {[%clk 0:00:52.2]} 19... Kh7 {[%clk
0:01:24.4]} 20. fxg6+ {[%clk 0:00:49.6]} 20... fxg6 {[%clk 0:01:24.6]} 21. Bh3
{[%clk 0:00:51.2]} 21... Nhf6 {[%clk 0:01:15.9]} 22. b3 {[%clk 0:00:44.5]} 22...
Nxe4 {[%clk 0:01:10.2]} 23. Qd3 {[%clk 0:00:37.4]} 23... Ndf6 {[%clk 0:01:07.1]}
24. Bg2 {[%clk 0:00:23.3]} 24... Ng5 {[%clk 0:00:52]} 25. h4 {[%clk 0:00:20.7]}
25... Nf7 {[%clk 0:00:51.8]} 26. Bf3 {[%clk 0:00:12.9]} 26... h5 {[%clk
0:00:50.8]} 27. Bg5 {[%clk 0:00:11.6]} 27... Nh6 {[%clk 0:00:51.1]} 28. Bxf6
{[%clk 0:00:07.7]} 28... Bxf6 {[%clk 0:00:53]} 29. Kg2 {[%clk 0:00:04.9]} 29...
Nf5 {[%clk 0:00:53.2]} 30. Bxh5 {[%clk 0:00:04.8]} 30... Qd8 {[%clk 0:00:47.2]}
31. Bxg6+ {[%clk 0:00:05.5]} 31... Kxg6 {[%clk 0:00:46.7]} 32. Rxf5 {[%clk
0:00:03.6]} 32... Kg7 {[%clk 0:00:48.2]} 33. Raf1 {[%clk 0:00:05.2]} 33... Qd7
{[%clk 0:00:41.9]} 34. Qf3 {[%clk 0:00:06.5]} 34... Be7 {[%clk 0:00:40.2]} 35.
Qg4+ {[%clk 0:00:07.2]} 35... Kh6 {[%clk 0:00:33.3]} 36. Rh5# {[%clk 0:00:07.8]}
1-0

[Event "*** Titled Tuesday 3|2 Blitz"]
[Site "Chess.com"]
[Date "2015.10.06"]
[Round "5"]
[White "StellarChessPro"]
[Black "kesarev"]
[Result "0-1"]
[WhiteElo "2225"]
[BlackElo "2190"]
[TimeControl "180+2"]
[EndTime "12:03:02 PDT"]
[Termination "kesarev won by resignation"]

1. d4 {[%clk 0:03:01.9]} 1... Nf6 {[%clk 0:03:00.5]} 2. Bg5 {[%clk 0:03:02.1]}
2... Ne4 {[%clk 0:02:58.3]} 3. Bf4 {[%clk 0:03:02.4]} 3... d5 {[%clk 0:02:58.2]}
4. f3 {[%clk 0:03:03.1]} 4... Nd6 {[%clk 0:02:57.5]} 5. Nc3 {[%clk 0:03:03.8]}
5... c6 {[%clk 0:02:46.2]} 6. e4 {[%clk 0:03:04.3]} 6... g6 {[%clk 0:02:45.7]}
7. exd5 {[%clk 0:03:04]} 7... cxd5 {[%clk 0:02:45.9]} 8. Nxd5 {[%clk 0:03:03.5]}
8... Bg7 {[%clk 0:02:45.9]} 9. c3 {[%clk 0:03:02.2]} 9... O-O {[%clk 0:02:45.1]}
10. Bd3 {[%clk 0:03:00.6]} 10... Nc6 {[%clk 0:02:42.8]} 11. Ne2 {[%clk
0:02:55.6]} 11... e5 {[%clk 0:02:42.7]} 12. dxe5 {[%clk 0:02:55.5]} 12... Nxe5
{[%clk 0:02:43.3]} 13. Bc2 {[%clk 0:02:51.3]} 13... Ndc4 {[%clk 0:02:39]} 14.
Rb1 {[%clk 0:02:44.6]} 14... Be6 {[%clk 0:02:25.5]} 15. Ne3 {[%clk 0:02:45]}
15... Qb6 {[%clk 0:02:09.1]} 16. Nxc4 {[%clk 0:02:37.4]} 16... Bxc4 {[%clk
0:01:50.1]} 17. Nd4 {[%clk 0:02:23.7]} 17... Bxa2 {[%clk 0:01:41.8]} 18. Ra1
{[%clk 0:02:23.5]} 18... Bc4 {[%clk 0:01:41.8]} 19. Qc1 {[%clk 0:02:04.8]} 19...
Rad8 {[%clk 0:01:31.9]} 20. Kf2 {[%clk 0:01:59.9]} 20... Nc6 {[%clk 0:01:17.4]}
21. Be3 {[%clk 0:01:43.6]} 21... Nxd4 {[%clk 0:01:16]} 22. cxd4 {[%clk
0:01:43.3]} 22... Bxd4 {[%clk 0:01:15.3]} 23. Re1 {[%clk 0:01:43.3]} 23... Rfe8
{[%clk 0:01:12]} 24. Ra3 {[%clk 0:01:40.3]} 24... Qxb2 {[%clk 0:00:50.4]} 25.
Qxb2 {[%clk 0:01:38.7]} 25... Bxb2 {[%clk 0:00:50.8]} 26. Rxa7 {[%clk
0:01:03.2]} 26... Bc3 {[%clk 0:00:51.1]} 27. Rd1 {[%clk 0:00:56.9]} 27... Rxd1
{[%clk 0:00:37]} 28. Bxd1 {[%clk 0:00:58.8]} 28... Ba6 {[%clk 0:00:37.8]} 29.
Bb3 {[%clk 0:00:49.1]} 29... Ba5 {[%clk 0:00:26.4]} 30. Bd4 {[%clk 0:00:40.1]}
30... Be1+ {[%clk 0:00:25.2]} 31. Kg1 {[%clk 0:00:39.5]} 31... Rd8 {[%clk
0:00:20]} 32. Bc5 {[%clk 0:00:35.6]} 32... Bh4 {[%clk 0:00:18.2]} 33. g3 {[%clk
0:00:35.4]} 33... Bg5 {[%clk 0:00:17.1]} 34. h4 {[%clk 0:00:34.6]} 34... Bf6
{[%clk 0:00:17.1]} 35. Kg2 {[%clk 0:00:32.7]} 35... Be5 {[%clk 0:00:17.4]} 36.
f4 {[%clk 0:00:33]} 36... Bb8 {[%clk 0:00:17.3]} 37. Ra8 {[%clk 0:00:31]} 37...
b6 {[%clk 0:00:18.6]} 38. Bd6 {[%clk 0:00:24]} 38... Bb7+ {[%clk 0:00:18.3]} 39.
Kh2 {[%clk 0:00:20.8]} 39... Bxa8 {[%clk 0:00:19.1]} 40. Be7 {[%clk 0:00:20.7]}
40... Rd2+ {[%clk 0:00:19.6]} 41. Kh3 {[%clk 0:00:21.7]} 41... h5 {[%clk
0:00:19.8]} 42. f5 {[%clk 0:00:22.3]} 42... Bf3 {[%clk 0:00:20]} 0-1